Workbook

Sheet Look-up
A1: INSTRUCTIONS: To retrieve the water quality guideline, please enter the ambient water chemistry variables (i.e., pH, DOC and hardness) using drop-down menus. The chronic and acute water water quality guidelines will appear on the right. NOTE: If no WQG value appears, re-set the DOC and Hardness values.
A5: pH | B5: DOC (mg/L) | C5: Hardness (mg/L) | D5: Chronic WQG (ug/L) | E5: Acute WQG (ug/L)
A6: 4.8 | B6: 3 | C6: 150 | D6: =ROUNDDOWN(SUMIFS('WQG Data'!E2:E26835,'WQG Data'!$B2:$B26835,'Look-up'!$A6,'WQG Data'!$C2:$C26835,'Look-up'!$B6,'WQG Data'!$D2:$D26835,'Look-up'!$C6),2) -> 0.2 | E6: =ROUNDDOWN(SUMIFS('WQG Data'!F2:F26835,'WQG Data'!$B2:$B26835,'Look-up'!$A6,'WQG Data'!$C2:$C26835,'Look-up'!$B6,'WQG Data'!$D2:$D26835,'Look-up'!$C6),2) -> 0.2

Sheet WQG Data
A1: ID | B1: pH | C1: DOC (mg/L) | D1: Hardness (mg/L) | E1: Chronic WQG (ug/L) | F1: Acute WQG (ug/L)
A2: 1 | B2: 4.8 | C2: 0.05 | D2: 8 | E2: 0.2 | F2: 0.2
A3: 2 | B3: 4.8 | C3: 0.05 | D3: 25 | E3: 0.2 | F3: 0.2
A4: 3 | B4: 4.8 | C4: 0.05 | D4: 50 | E4: 0.2 | F4: 0.2
A5: 4 | B5: 4.8 | C5: 0.05 | D5: 75 | E5: 0.2 | F5: 0.2
A6: 5 | B6: 4.8 | C6: 0.05 | D6: 100 | E6: 0.2 | F6: 0.2
A7: 6 | B7: 4.8 | C7: 0.05 | D7: 125 | E7: 0.2 | F7: 0.2
A8: 7 | B8: 4.8 | C8: 0.05 | D8: 150 | E8: 0.2 | F8: 0.2
A9: 8 | B9: 4.8 | C9: 0.05 | D9: 175 | E9: 0.2 | F9: 0.2
A10: 9 | B10: 4.8 | C10: 0.05 | D10: 200 | E10: 0.2 | F10: 0.2
A11: 10 | B11: 4.8 | C11: 0.05 | D11: 225 | E11: 0.2 | F11: 0.2
A12: 11 | B12: 4.8 | C12: 0.05 | D12: 243 | E12: 0.2 | F12: 0.2
A13: 12 | B13: 4.8 | C13: 1 | D13: 8 | E13: 0.2 | F13: 0.2
A14: 13 | B14: 4.8 | C14: 1 | D14: 25 | E14: 0.2 | F14: 0.2
A15: 14 | B15: 4.8 | C15: 1 | D15: 50 | E15: 0.2 | F15: 0.2
A16: 15 | B16: 4.8 | C16: 1 | D16: 75 | E16: 0.2 | F16: 0.2
A17: 16 | B17: 4.8 | C17: 1 | D17: 100 | E17: 0.2 | F17: 0.2
A18: 17 | B18: 4.8 | C18: 1 | D18: 125 | E18: 0.2 | F18: 0.2
A19: 18 | B19: 4.8 | C19: 1 | D19: 150 | E19: 0.2 | F19: 0.2
A20: 19 | B20: 4.8 | C20: 1 | D20: 175 | E20: 0.2 | F20: 0.2
A21: 20 | B21: 4.8 | C21: 1 | D21: 200 | E21: 0.2 | F21: 0.2
A22: 21 | B22: 4.8 | C22: 1 | D22: 225 | E22: 0.2 | F22: 0.2
A23: 22 | B23: 4.8 | C23: 1 | D23: 243 | E23: 0.2 | F23: 0.2
A24: 23 | B24: 4.8 | C24: =C13+1 -> 2 | D24: =D13 -> 8 | E24: 0.2 | F24: 0.2
A25: 24 | B25: 4.8 | C25: =C14+1 -> 2 | D25: =D14 -> 25 | E25: 0.2 | F25: 0.2
A26: 25 | B26: 4.8 | C26: 2 | D26: 50 | E26: 0.2 | F26: 0.2
A27: 26 | B27: 4.8 | C27: 2 | D27: 75 | E27: 0.2 | F27: 0.2
A28: 27 | B28: 4.8 | C28: 2 | D28: 100 | E28: 0.2 | F28: 0.2
A29: 28 | B29: 4.8 | C29: 2 | D29: 125 | E29: 0.2 | F29: 0.2
A30: 29 | B30: 4.8 | C30: 2 | D30: 150 | E30: 0.2 | F30: 0.2
A31: 30 | B31: 4.8 | C31: 2 | D31: 175 | E31: 0.2 | F31: 0.2
A32: 31 | B32: 4.8 | C32: 2 | D32: 200 | E32: 0.2 | F32: 0.2
A33: 32 | B33: 4.8 | C33: 2 | D33: 225 | E33: 0.2 | F33: 0.2
A34: 33 | B34: 4.8 | C34: 2 | D34: 243 | E34: 0.2 | F34: 0.2
A35: 34 | B35: 4.8 | C35: 3 | D35: 8 | E35: 0.2 | F35: 0.2
A36: 35 | B36: 4.8 | C36: 3 | D36: 25 | E36: 0.2 | F36: 0.2
A37: 36 | B37: 4.8 | C37: 3 | D37: 50 | E37: 0.2 | F37: 0.2
A38: 37 | B38: 4.8 | C38: 3 | D38: 75 | E38: 0.2 | F38: 0.2
A39: 38 | B39: 4.8 | C39: 3 | D39: 100 | E39: 0.2 | F39: 0.2
A40: 39 | B40: 4.8 | C40: 3 | D40: 125 | E40: 0.2 | F40: 0.2
A41: 40 | B41: 4.8 | C41: 3 | D41: 150 | E41: 0.2 | F41: 0.2
A42: 41 | B42: 4.8 | C42: 3 | D42: 175 | E42: 0.2 | F42: 0.2
A43: 42 | B43: 4.8 | C43: 3 | D43: 200 | E43: 0.2 | F43: 0.2
A44: 43 | B44: 4.8 | C44: 3 | D44: 225 | E44: 0.2 | F44: 0.2
A45: 44 | B45: 4.8 | C45: 3 | D45: 243 | E45: 0.2 | F45: 0.2
A46: 45 | B46: 4.8 | C46: 4 | D46: 8 | E46: 0.2 | F46: 0.2
A47: 46 | B47: 4.8 | C47: 4 | D47: 25 | E47: 0.2 | F47: 0.2
A48: 47 | B48: 4.8 | C48: 4 | D48: 50 | E48: 0.2 | F48: 0.2
A49: 48 | B49: 4.8 | C49: 4 | D49: 75 | E49: 0.2 | F49: 0.2
A50: 49 | B50: 4.8 | C50: 4 | D50: 100 | E50: 0.2 | F50: 0.2
A51: 50 | B51: 4.8 | C51: 4 | D51: 125 | E51: 0.2 | F51: 0.2
A52: 51 | B52: 4.8 | C52: 4 | D52: 150 | E52: 0.2 | F52: 0.2
A53: 52 | B53: 4.8 | C53: 4 | D53: 175 | E53: 0.2 | F53: 0.2
A54: 53 | B54: 4.8 | C54: 4 | D54: 200 | E54: 0.2 | F54: 0.2
A55: 54 | B55: 4.8 | C55: 4 | D55: 225 | E55: 0.2 | F55: 0.2
A56: 55 | B56: 4.8 | C56: 4 | D56: 243 | E56: 0.2 | F56: 0.2
A57: 56 | B57: 4.8 | C57: 5 | D57: 8 | E57: 0.2 | F57: 0.2
A58: 57 | B58: 4.8 | C58: 5 | D58: 25 | E58: 0.2 | F58: 0.2
A59: 58 | B59: 4.8 | C59: 5 | D59: 50 | E59: 0.2 | F59: 0.2
A60: 59 | B60: 4.8 | C60: 5 | D60: 75 | E60: 0.2 | F60: 0.2
A61: 60 | B61: 4.8 | C61: 5 | D61: 100 | E61: 0.2 | F61: 0.2
A62: 61 | B62: 4.8 | C62: 5 | D62: 125 | E62: 0.2 | F62: 0.2
A63: 62 | B63: 4.8 | C63: 5 | D63: 150 | E63: 0.2 | F63: 0.2
A64: 63 | B64: 4.8 | C64: 5 | D64: 175 | E64: 0.2 | F64: 0.2
A65: 64 | B65: 4.8 | C65: 5 | D65: 200 | E65: 0.2 | F65: 0.2
A66: 65 | B66: 4.8 | C66: 5 | D66: 225 | E66: 0.2 | F66: 0.2
A67: 66 | B67: 4.8 | C67: 5 | D67: 243 | E67: 0.2 | F67: 0.2
A68: 67 | B68: 4.8 | C68: 6 | D68: 8 | E68: 0.2 | F68: 0.2
A69: 68 | B69: 4.8 | C69: 6 | D69: 25 | E69: 0.2 | F69: 0.2
A70: 69 | B70: 4.8 | C70: 6 | D70: 50 | E70: 0.2 | F70: 0.2
A71: 70 | B71: 4.8 | C71: 6 | D71: 75 | E71: 0.2 | F71: 0.2
A72: 71 | B72: 4.8 | C72: 6 | D72: 100 | E72: 0.2 | F72: 0.2
A73: 72 | B73: 4.8 | C73: 6 | D73: 125 | E73: 0.2 | F73: 0.2
A74: 73 | B74: 4.8 | C74: 6 | D74: 150 | E74: 0.2 | F74: 0.2
A75: 74 | B75: 4.8 | C75: 6 | D75: 175 | E75: 0.2 | F75: 0.2
A76: 75 | B76: 4.8 | C76: 6 | D76: 200 | E76: 0.2 | F76: 0.2
A77: 76 | B77: 4.8 | C77: 6 | D77: 225 | E77: 0.2 | F77: 0.2
A78: 77 | B78: 4.8 | C78: 6 | D78: 243 | E78: 0.2 | F78: 0.2
A79: 78 | B79: 4.8 | C79: 7 | D79: 8 | E79: 0.2 | F79: 0.2
A80: 79 | B80: 4.8 | C80: 7 | D80: 25 | E80: 0.2 | F80: 0.2
A81: 80 | B81: 4.8 | C81: 7 | D81: 50 | E81: 0.2 | F81: 0.2
A82: 81 | B82: 4.8 | C82: 7 | D82: 75 | E82: 0.2 | F82: 0.2
A83: 82 | B83: 4.8 | C83: 7 | D83: 100 | E83: 0.2 | F83: 0.2
A84: 83 | B84: 4.8 | C84: 7 | D84: 125 | E84: 0.2 | F84: 0.2
A85: 84 | B85: 4.8 | C85: 7 | D85: 150 | E85: 0.2 | F85: 0.2
A86: 85 | B86: 4.8 | C86: 7 | D86: 175 | E86: 0.2 | F86: 0.2
A87: 86 | B87: 4.8 | C87: 7 | D87: 200 | E87: 0.2 | F87: 0.2
A88: 87 | B88: 4.8 | C88: 7 | D88: 225 | E88: 0.2 | F88: 0.2
A89: 88 | B89: 4.8 | C89: =C78+1 -> 7 | D89: =D78 -> 243 | E89: 0.2 | F89: 0.2
A90: 89 | B90: 4.8 | C90: 8 | D90: 8 | E90: 0.2 | F90: 0.2056729836
A91: 90 | B91: 4.8 | C91: 8 | D91: 25 | E91: 0.2 | F91: 0.2
A92: 91 | B92: 4.8 | C92: 8 | D92: 50 | E92: 0.2 | F92: 0.2
A93: 92 | B93: 4.8 | C93: 8 | D93: 75 | E93: 0.2 | F93: 0.2
A94: 93 | B94: 4.8 | C94: 8 | D94: 100 | E94: 0.2 | F94: 0.2
A95: 94 | B95: 4.8 | C95: 8 | D95: 125 | E95: 0.2 | F95: 0.2
A96: 95 | B96: 4.8 | C96: 8 | D96: 150 | E96: 0.2 | F96: 0.2
A97: 96 | B97: 4.8 | C97: 8 | D97: 175 | E97: 0.2 | F97: 0.2
A98: 97 | B98: 4.8 | C98: 8 | D98: 200 | E98: 0.2 | F98: 0.2
A99: 98 | B99: 4.8 | C99: 8 | D99: 225 | E99: 0.2 | F99: 0.2
A100: 99 | B100: 4.8 | C100: 8 | D100: 243 | E100: 0.2 | F100: 0.2
A101: 100 | B101: 4.8 | C101: 9 | D101: 8 | E101: 0.2 | F101: 0.2375476572
A102: 101 | B102: 4.8 | C102: 9 | D102: 25 | E102: 0.2 | F102: 0.2
A103: 102 | B103: 4.8 | C103: 9 | D103: 50 | E103: 0.2 | F103: 0.2
A104: 103 | B104: 4.8 | C104: 9 | D104: 75 | E104: 0.2 | F104: 0.2
A105: 104 | B105: 4.8 | C105: 9 | D105: 100 | E105: 0.2 | F105: 0.2
A106: 105 | B106: 4.8 | C106: 9 | D106: 125 | E106: 0.2 | F106: 0.2
A107: 106 | B107: 4.8 | C107: 9 | D107: 150 | E107: 0.2 | F107: 0.2
A108: 107 | B108: 4.8 | C108: 9 | D108: 175 | E108: 0.2 | F108: 0.2
A109: 108 | B109: 4.8 | C109: 9 | D109: 200 | E109: 0.2 | F109: 0.2
A110: 109 | B110: 4.8 | C110: 9 | D110: 225 | E110: 0.2 | F110: 0.2
A111: 110 | B111: 4.8 | C111: 9 | D111: 243 | E111: 0.2 | F111: 0.2
A112: 111 | B112: 4.8 | C112: 10 | D112: 8 | E112: 0.2 | F112: 0.2714780439
A113: 112 | B113: 4.8 | C113: 10 | D113: 25 | E113: 0.2 | F113: 0.2
A114: 113 | B114: 4.8 | C114: 10 | D114: 50 | E114: 0.2 | F114: 0.2
A115: 114 | B115: 4.8 | C115: 10 | D115: 75 | E115: 0.2 | F115: 0.2
A116: 115 | B116: 4.8 | C116: 10 | D116: 100 | E116: 0.2 | F116: 0.2
A117: 116 | B117: 4.8 | C117: 10 | D117: 125 | E117: 0.2 | F117: 0.2
A118: 117 | B118: 4.8 | C118: 10 | D118: 150 | E118: 0.2 | F118: 0.2
A119: 118 | B119: 4.8 | C119: 10 | D119: 175 | E119: 0.2 | F119: 0.2
A120: 119 | B120: 4.8 | C120: 10 | D120: 200 | E120: 0.2 | F120: 0.2
A121: 120 | B121: 4.8 | C121: 10 | D121: 225 | E121: 0.2 | F121: 0.2
A122: 121 | B122: 4.8 | C122: 10 | D122: 243 | E122: 0.2 | F122: 0.2
A123: 122 | B123: 4.8 | C123: 11 | D123: 8 | E123: 0.2 | F123: 0.3074387253
A124: 123 | B124: 4.8 | C124: 11 | D124: 25 | E124: 0.2 | F124: 0.2
A125: 124 | B125: 4.8 | C125: 11 | D125: 50 | E125: 0.2 | F125: 0.2
A126: 125 | B126: 4.8 | C126: 11 | D126: 75 | E126: 0.2 | F126: 0.2
A127: 126 | B127: 4.8 | C127: 11 | D127: 100 | E127: 0.2 | F127: 0.2
A128: 127 | B128: 4.8 | C128: 11 | D128: 125 | E128: 0.2 | F128: 0.2
A129: 128 | B129: 4.8 | C129: 11 | D129: 150 | E129: 0.2 | F129: 0.2
A130: 129 | B130: 4.8 | C130: 11 | D130: 175 | E130: 0.2 | F130: 0.2
A131: 130 | B131: 4.8 | C131: 11 | D131: 200 | E131: 0.2 | F131: 0.2
A132: 131 | B132: 4.8 | C132: 11 | D132: 225 | E132: 0.2 | F132: 0.2
A133: 132 | B133: 4.8 | C133: 11 | D133: 243 | E133: 0.2 | F133: 0.2
A134: 133 | B134: 4.8 | C134: 12 | D134: 8 | E134: 0.2 | F134: 0.345594921
A135: 134 | B135: 4.8 | C135: 12 | D135: 25 | E135: 0.2 | F135: 0.2084499438
A136: 135 | B136: 4.8 | C136: 12 | D136: 50 | E136: 0.2 | F136: 0.2
A137: 136 | B137: 4.8 | C137: 12 | D137: 75 | E137: 0.2 | F137: 0.2
A138: 137 | B138: 4.8 | C138: 12 | D138: 100 | E138: 0.2 | F138: 0.2
A139: 138 | B139: 4.8 | C139: 12 | D139: 125 | E139: 0.2 | F139: 0.2
A140: 139 | B140: 4.8 | C140: 12 | D140: 150 | E140: 0.2 | F140: 0.2
A141: 140 | B141: 4.8 | C141: 12 | D141: 175 | E141: 0.2 | F141: 0.2
A142: 141 | B142: 4.8 | C142: 12 | D142: 200 | E142: 0.2 | F142: 0.2
A143: 142 | B143: 4.8 | C143: 12 | D143: 225 | E143: 0.2 | F143: 0.2021207622
A144: 143 | B144: 4.8 | C144: 12 | D144: 243 | E144: 0.2 | F144: 0.2051741475
A145: 144 | B145: 4.8 | C145: 13 | D145: 8 | E145: 0.2 | F145: 0.386200815
A146: 145 | B146: 4.8 | C146: 13 | D146: 25 | E146: 0.2 | F146: 0.2282953596
A147: 146 | B147: 4.8 | C147: 13 | D147: 50 | E147: 0.2 | F147: 0.2
A148: 147 | B148: 4.8 | C148: 13 | D148: 75 | E148: 0.2 | F148: 0.2
A149: 148 | B149: 4.8 | C149: 13 | D149: 100 | E149: 0.2 | F149: 0.2
A150: 149 | B150: 4.8 | C150: 13 | D150: 125 | E150: 0.2 | F150: 0.2
A151: 150 | B151: 4.8 | C151: 13 | D151: 150 | E151: 0.2 | F151: 0.201059544
A152: 151 | B152: 4.8 | C152: 13 | D152: 175 | E152: 0.2 | F152: 0.2065848687
A153: 152 | B153: 4.8 | C153: =C142+1 -> 13 | D153: =D142 -> 200 | E153: 0.2 | F153: 0.2123834412
A154: 153 | B154: 4.8 | C154: 13 | D154: 225 | E154: 0.2 | F154: 0.2182995738
A155: 154 | B155: 4.8 | C155: 13 | D155: 243 | E155: 0.2 | F155: 0.2215245333
A156: 155 | B156: 4.8 | C156: 14 | D156: 8 | E156: 0.2 | F156: 0.429475641
A157: 156 | B157: 4.8 | C157: 14 | D157: 25 | E157: 0.2 | F157: 0.2485697109
A158: 157 | B158: 4.8 | C158: 14 | D158: 50 | E158: 0.2 | F158: 0.2127424761
A159: 158 | B159: 4.8 | C159: 14 | D159: 75 | E159: 0.2 | F159: 0.2063815215
A160: 159 | B160: 4.8 | C160: 14 | D160: 100 | E160: 0.2 | F160: 0.2073696618
A161: 160 | B161: 4.8 | C161: 14 | D161: 125 | E161: 0.2 | F161: 0.2111728899
A162: 161 | B162: 4.8 | C162: 14 | D162: 150 | E162: 0.2 | F162: 0.2162915202
A163: 162 | B163: 4.8 | C163: 14 | D163: 175 | E163: 0.2 | F163: 0.222061497
A164: 163 | B164: 4.8 | C164: 14 | D164: 200 | E164: 0.2 | F164: 0.2281428492
A165: 164 | B165: 4.8 | C165: 14 | D165: 225 | E165: 0.2 | F165: 0.2343608253
A166: 165 | B166: 4.8 | C166: 14 | D166: 243 | E166: 0.2 | F166: 0.2377510044
A167: 166 | B167: 4.8 | C167: 15 | D167: 8 | E167: 0.2 | F167: 0.475705356
A168: 167 | B168: 4.8 | C168: 15 | D168: 25 | E168: 0.2 | F168: 0.2692793523
A169: 168 | B169: 4.8 | C169: 15 | D169: 50 | E169: 0.2 | F169: 0.2292993864
A170: 169 | B170: 4.8 | C170: 15 | D170: 75 | E170: 0.2 | F170: 0.2219534688
A171: 170 | B171: 4.8 | C171: 15 | D171: 100 | E171: 0.2 | F171: 0.2227001343
A172: 171 | B172: 4.8 | C172: 15 | D172: 125 | E172: 0.2 | F172: 0.2265446673
A173: 172 | B173: 4.8 | C173: 15 | D173: 150 | E173: 0.2 | F173: 0.2318412264
A174: 173 | B174: 4.8 | C174: 15 | D174: 175 | E174: 0.2 | F174: 0.2378590326
A175: 174 | B175: 4.8 | C175: 15 | D175: 200 | E175: 0.2 | F175: 0.2442263418
A176: 175 | B176: 4.8 | C176: 15 | D176: 225 | E176: 0.2 | F176: 0.2507461614
A177: 176 | B177: 4.8 | C177: 15 | D177: 243 | E177: 0.2 | F177: 0.2543047374
A178: 177 | B178: 4.8 | C178: 16 | D178: 8 | E178: 0.2 | F178: 0.524921733
A179: 178 | B179: 4.8 | C179: 16 | D179: 25 | E179: 0.2 | F179: 0.2904274611
A180: 179 | B180: 4.8 | C180: 16 | D180: 50 | E180: 0.2 | F180: 0.2460755304
A181: 180 | B181: 4.8 | C181: 16 | D181: 75 | E181: 0.2 | F181: 0.2376874584
A182: 181 | B182: 4.8 | C182: 16 | D182: 100 | E182: 0.2 | F182: 0.2381672307
A183: 182 | B183: 4.8 | C183: 16 | D183: 125 | E183: 0.2 | F183: 0.2420403594
A184: 183 | B184: 4.8 | C184: 16 | D184: 150 | E184: 0.2 | F184: 0.2475053154
A185: 184 | B185: 4.8 | C185: 16 | D185: 175 | E185: 0.2 | F185: 0.2537614191
A186: 185 | B186: 4.8 | C186: 16 | D186: 200 | E186: 0.2 | F186: 0.2604083307
A187: 186 | B187: 4.8 | C187: 16 | D187: 225 | E187: 0.2 | F187: 0.2672299938
A188: 187 | B188: 4.8 | C188: 16 | D188: 243 | E188: 0.2 | F188: 0.2709537894
A189: 188 | B189: 4.8 | C189: 17 | D189: 8 | E189: 0.2 | F189: 0.578459238
A190: 189 | B190: 4.8 | C190: 17 | D190: 25 | E190: 0.2 | F190: 0.3120172146
A191: 190 | B191: 4.8 | C191: 17 | D191: 50 | E191: 0.2 | F191: 0.2630613762
A192: 191 | B192: 4.8 | C192: 17 | D192: 75 | E192: 0.2 | F192: 0.2535834903
A193: 192 | B193: 4.8 | C193: 17 | D193: 100 | E193: 0.2 | F193: 0.253770951
A194: 193 | B194: 4.8 | C194: 17 | D194: 125 | E194: 0.2 | F194: 0.2576567889
A195: 194 | B195: 4.8 | C195: 17 | D195: 150 | E195: 0.2 | F195: 0.2632774326
A196: 195 | B196: 4.8 | C196: 17 | D196: 175 | E196: 0.2 | F196: 0.2697686565
A197: 196 | B197: 4.8 | C197: 17 | D197: 200 | E197: 0.2 | F197: 0.2766888159
A198: 197 | B198: 4.8 | C198: 17 | D198: 225 | E198: 0.2 | F198: 0.2838091452
A199: 198 | B199: 4.8 | C199: 17 | D199: 243 | E199: 0.2 | F199: 0.2876949831
A200: 199 | B200: 4.8 | C200: 18 | D200: 8 | E200: 0.2 | F200: 0.635873049
... 4300 more rows

Sheet Unique (hidden)
A1: pH | B1: Group DOC | C1: Group Hard | G1: Group 1 | H1: ph | I1: Group1DOC | J1: Group1Hard | K1: Group 2 | L1: pH | M1: Group2DOC | N1: Group2Hard | O1: Groups 3 | P1: pH | Q1: Group3DOC | R1: Group3Hard | S1: Group 4 | T1: pH | U1: Group4DOC | V1: Group4Hard
A2: 4.8 | B2: Group1DOC | C2: Group1Hard | D2: Group DOC | E2: Group Hard | H2: 4.8 | I2: 0.05 | J2: 8 | L2: 5.7 | M2: 0.05 | N2: 8 | P2: 6.6 | Q2: 0.05 | R2: 8 | T2: 7.1 | U2: 0.05 | V2: 8
A3: 5 | B3: Group1DOC | C3: Group1Hard | D3: =VLOOKUP('Look-up'!A6,Unique!A1:B40,2) -> Group1DOC | E3: =VLOOKUP('Look-up'!A6,Unique!A2:C40,3) -> Group1Hard | H3: 5 | I3: 1 | J3: 25 | L3: 5.8 | M3: 1 | N3: 25 | P3: 6.7 | Q3: 2 | R3: 20 | T3: 7.2 | U3: 1 | V3: 15
A4: 5.2 | B4: Group1DOC | C4: Group1Hard | H4: 5.2 | I4: 2 | J4: 50 | L4: 5.9 | M4: 2 | N4: 50 | P4: 6.8 | Q4: 3 | R4: 30 | T4: 7.3 | U4: 1.5 | V4: 20
A5: 5.4 | B5: Group1DOC | C5: Group1Hard | H5: 5.4 | I5: 3 | J5: 75 | L5: 6 | M5: 3 | N5: 75 | P5: 6.9 | Q5: 4 | R5: 40 | T5: 7.4 | U5: 2 | V5: 30
A6: 5.6 | B6: Group1DOC | C6: Group1Hard | H6: 5.6 | I6: 4 | J6: 100 | L6: 6.1 | M6: 4 | N6: 100 | P6: 7 | Q6: 5 | R6: 50 | T6: 7.5 | U6: 2.5 | V6: 40
A7: 5.7 | B7: Group2DOC | C7: Group2Hard | I7: 5 | J7: 125 | L7: 6.2 | M7: 5 | N7: 125 | Q7: 6 | R7: 60 | T7: 7.6 | U7: 3 | V7: 50
A8: 5.8 | B8: Group2DOC | C8: Group2Hard | I8: 6 | J8: 150 | L8: 6.3 | M8: 6 | N8: 150 | Q8: 7 | R8: 70 | T8: 7.7 | U8: 3.5 | V8: 60
A9: 5.9 | B9: Group2DOC | C9: Group2Hard | I9: 7 | J9: 175 | L9: 6.4 | M9: 7 | N9: 175 | Q9: 8 | R9: 80 | T9: 7.8 | U9: 4 | V9: 70
A10: 6 | B10: Group2DOC | C10: Group2Hard | I10: 8 | J10: 200 | L10: 6.5 | M10: 8 | N10: 200 | Q10: 9 | R10: 90 | T10: 7.9 | U10: 4.5 | V10: 80
A11: 6.1 | B11: Group2DOC | C11: Group2Hard | I11: 9 | J11: 225 | M11: 9 | N11: 225 | Q11: 10 | R11: 100 | T11: 8 | U11: 5 | V11: 90
A12: 6.2 | B12: Group2DOC | C12: Group2Hard | I12: 10 | J12: 243 | M12: 10 | N12: 243 | Q12: 10.5 | R12: 110 | T12: 8.1 | U12: 5.5 | V12: 100
A13: 6.3 | B13: Group2DOC | C13: Group2Hard | I13: 11 | M13: 11 | Q13: 11 | R13: 120 | T13: 8.2 | U13: 6 | V13: 110
A14: 6.4 | B14: Group2DOC | C14: Group2Hard | I14: 12 | M14: 12 | Q14: 11.5 | R14: 130 | T14: 8.3 | U14: 6.5 | V14: 120
A15: 6.5 | B15: Group2DOC | C15: Group2Hard | I15: 13 | M15: 13 | Q15: 12 | R15: 140 | T15: 8.4 | U15: 7 | V15: 130
A16: 6.6 | B16: Group3DOC | C16: Group3Hard | I16: 14 | M16: 14 | Q16: 12.5 | R16: 150 | T16: 8.5 | U16: 7.5 | V16: 140
A17: 6.7 | B17: Group3DOC | C17: Group3Hard | I17: 15 | M17: 15 | Q17: 13 | R17: 160 | T17: 8.6 | U17: 8 | V17: 150
A18: 6.8 | B18: Group3DOC | C18: Group3Hard | I18: 16 | M18: 16 | Q18: 13.5 | R18: 170 | T18: 8.7 | U18: 8.5 | V18: 160
A19: 6.9 | B19: Group3DOC | C19: Group3Hard | I19: 17 | M19: 17 | Q19: 14 | R19: 180 | T19: 8.8 | U19: 9 | V19: 170
A20: 7 | B20: Group3DOC | C20: Group3Hard | I20: 18 | M20: 18 | Q20: 14.5 | R20: 190 | T20: 8.9 | U20: 9.5 | V20: 180
A21: 7.1 | B21: Group4DOC | C21: Group4Hard | I21: 19 | M21: 19 | Q21: 15 | R21: 200 | T21: 9 | U21: 10 | V21: 190
A22: 7.2 | B22: Group4DOC | C22: Group4Hard | I22: 20 | M22: 20 | Q22: 15.5 | R22: 210 | U22: 10.5 | V22: 200
A23: 7.3 | B23: Group4DOC | C23: Group4Hard | Q23: 16 | R23: 220 | U23: 11 | V23: 210
A24: 7.4 | B24: Group4DOC | C24: Group4Hard | Q24: 16.5 | R24: 230 | U24: 11.5 | V24: 220
A25: 7.5 | B25: Group4DOC | C25: Group4Hard | Q25: 17 | R25: 243 | U25: 12 | V25: 230
A26: 7.6 | B26: Group4DOC | C26: Group4Hard | Q26: 17.5 | U26: 12.5 | V26: 243
A27: 7.7 | B27: Group4DOC | C27: Group4Hard | Q27: 18 | U27: 13
A28: 7.8 | B28: Group4DOC | C28: Group4Hard | Q28: 18.5 | U28: 13.5
A29: 7.9 | B29: Group4DOC | C29: Group4Hard | Q29: 19 | U29: 14
A30: 8 | B30: Group4DOC | C30: Group4Hard | Q30: 19.5 | U30: 14.5
A31: 8.1 | B31: Group4DOC | C31: Group4Hard | Q31: 20 | U31: 15
A32: 8.2 | B32: Group4DOC | C32: Group4Hard | U32: 15.5
A33: 8.3 | B33: Group4DOC | C33: Group4Hard | U33: 16
A34: 8.4 | B34: Group4DOC | C34: Group4Hard | U34: 16.5
A35: 8.5 | B35: Group4DOC | C35: Group4Hard | U35: 17
A36: 8.6 | B36: Group4DOC | C36: Group4Hard | U36: 17.5
A37: 8.7 | B37: Group4DOC | C37: Group4Hard | U37: 18
A38: 8.8 | B38: Group4DOC | C38: Group4Hard | U38: 18.5
A39: 8.9 | B39: Group4DOC | C39: Group4Hard | U39: 19
A40: 9 | B40: Group4DOC | C40: Group4Hard | U40: 19.5
U41: 20
